Cogmind - Beta 13 @@@ ROGUE MODE // 2024.04.24 @ 11:32:54 Player: mehbruh Result: Destroyed by SY-ST1(R) with Subdweller Laser Performance ------------- Evolutions (0) 0 Regions Visited (2) 400 Robots Destroyed (23) 115 Value Destroyed (445) 445 Prototype IDs (4) 80 Alien Tech Used (0) 0 Bonus (0) 0 TOTAL SCORE: 1040 Bonus ------- None Cogmind --------- Core Integrity 0/250 Matter 252/300 Energy 92/100 System Corruption 2% Temperature Cool (6) Movement Treading (160) Location -10/Subcaves Parts ------- > --- POWER (1) -------- Subdweller Power Source > --- PROPULSION (2) --- Light Treads Light Treads > --- UTILITY (2) ------ Large Storage Unit Signal Interpreter > --- WEAPON (2) ------- Subdweller Laser Battle Rifle > --- INVENTORY (15) --- Light Ion Engine Light Ion Engine Wheel Heat Sink Huge Storage Unit Light Armor Plating Tractor Beam Light Assault Rifle Light Assault Rifle Light Assault Rifle Light Assault Rifle Light Assault Rifle Makeshift Sword Scrap Shield Fragment (48) Peak State ------------ > --- POWER ------------ Subdweller Power Source > --- PROPULSION ------- Light Treads Light Treads > --- UTILITY ---------- Large Storage Unit Signal Interpreter > --- WEAPON ----------- Light Assault Rifle Makeshift Sword > --- INVENTORY -------- Light Ion Engine Light Ion Engine Light Treads Wheel Heat Sink Huge Storage Unit Light Armor Plating Tractor Beam Light Assault Rifle Light Assault Rifle Light Assault Rifle Light Assault Rifle Scrap Shield Fragment [Rating: 12] Favorites ----------- Power Light Ion Engine Engine Light Ion Engine Propulsion Light Treads Treads Light Treads Utility Large Storage Unit Device Seismic Detector Storage Large Storage Unit Processor Signal Interpreter Weapon Light Assault Rifle Energy Gun Small Laser Ballistic Gun Light Assault Rifle Slashing Weapon Makeshift Sword Build | -11 -10 -10 ------- Run | Yrd Mat Sub Slots Evolved . | . . . Power . | . . . Propulsion . | . . . Utility . | . . . Weapon . | . . . Parts Attached 32 | 7 9 16 Power 4 | 1 2 1 Engine 4 | 1 2 1 Core . | . . . Reactor . | . . . Propulsion 9 | 2 2 5 Treads 9 | 2 2 5 Leg . | . . . Wheel . | . . . Hover . | . . . Flight . | . . . Utility 4 | 2 2 . Device 1 | 1 . . Storage 2 | 1 1 . Processor 1 | . 1 . Hackware . | . . . Protection . | . . . Artifact . | . . . Weapon 15 | 2 3 10 Energy Gun 5 | 1 . 4 Energy Cannon . | . . . Ballistic Gun 7 | 1 3 3 Ballistic Cannon . | . . . Launcher . | . . . Special Weapon . | . . . Impact Weapon . | . . . Slashing Weapon 3 | . . 3 Piercing Weapon . | . . . Special Melee Weapon . | . . . Unidentified Prototypes . | . . . Parts Lost 5 | . . 5 Power . | . . . Propulsion 4 | . . 4 Utility . | . . . Weapon 1 | . . 1 Highest Loss Streak 4 | . . 4 To Critical Strikes . | . . . Average Slot Usage (%) 99 | . 100 99 Engine 14 | . 14 14 Treads 27 | . 28 27 Device 2 | . 4 . Storage 14 | . 14 14 Processor 11 | . 9 14 Energy Gun 1 | . 1 1 Ballistic Gun 24 | . 26 21 Slashing Weapon 2 | . . 4 Naked Turns . | . . . Heaviest Build 31 | 11 26 31 Greatest Support 40 | 40 40 40 Greatest Overweight (x) 1 | . . 1 Average Overweight (x) . | . . . Largest Inventory Capacity 15 | 8 15 15 Average Capacity 14 | 6 14 15 Most Carried 15 | 3 15 15 Average Carried 12 | 2 11 13 Final Capacity 15 | 8 15 15 Final Carried 15 | 3 15 14 Class Distribution -------------------- 86% | Scavenger-Mutant 13% | Mutant Dominant Class ---------------- Scavenger-Mutant | -10/Materials Scavenger-Mutant | -10/Subcaves Resources | -11 -10 -10 ----------- Run | Yrd Mat Sub Matter Collected 683 | 190 285 208 Remotely . | . . . Salvage Created 700 | 17 419 264 Parts 61 | 4 44 13 Haulers Intercepted 2 | . 2 . Recyclers Shooed 2 | 1 1 . Parts Field Recycled . | . . . Retrieved Matter . | . . . Parts Self-Destructed 1 | . . 1 Prevented . | . . . Kills | -11 -10 -10 ------- Run | Yrd Mat Sub Combat Hostiles Destroyed 17 | . 12 5 Guns 17 | . 12 5 Classes Destroyed 8 | 1 5 2 Builder 1 | . 1 . Tunneler 1 | 1 . . Hauler 2 | . 2 . Watcher 2 | . 2 . Swarmer 9 | . 9 . Grunt 3 | . 3 . Sentry 1 | . . 1 Subdweller 4 | . . 4 Best Kill Streak 6 | 1 6 2 Combat Bots Only 6 | . 6 2 Max Kills in Single Turn 1 | 1 1 1 Gunslinging . | . . . Exploded . | . . . Melee . | . . . Uniques/NPCs Destroyed . | . . . Combat | -11 -10 -10 -------- Run | Yrd Mat Sub Hostile Shots Fired 102 | . 51 51 Missed 25 | . 11 14 Damage Taken 1399 | . 348 1051 Core 253 | . 67 186 Absorbed by Shields . | . . . Core Remaining (%) 100 | 100 . . Volleys Fired 86 | 4 53 29 Largest 2 | 2 2 2 Hottest 85 | 60 60 85 Shots Fired 173 | 8 108 57 Gun 173 | 8 108 57 Cannon . | . . . Launcher . | . . . Special . | . . . Kinetic 137 | 4 96 37 Thermal 22 | 4 12 6 Explosive . | . . . Electromagnetic 14 | . . 14 Robot Hit Streak 19 | 3 10 19 Robot Miss Streak 5 | 2 5 3 Penetration Max . | . . . Secondary Targets 2 | . 2 . Max Gunslinging Chain 1 | . 1 . Shots Hit Robots 111 | 4 65 42 Core Hits 48 | 2 30 16 Critical Kills . | . . . Critical Parts Destroyed . | . . . Critical Strikes . | . . . Melee Attacks 23 | . . 23 Impact . | . . . Slashing 23 | . . 23 Piercing . | . . . Sneak Attacks . | . . . Combat Hostiles . | . . . Follow-up Attacks . | . . . Damage Inflicted 1143 | 50 557 536 Guns 1112 | 50 526 536 Cannons . | . . . Explosions . | . . . Melee . | . . . Ramming 31 | . 31 . Kinetic 753 | 29 463 261 Thermal 126 | 21 63 42 Explosive . | . . . Electromagnetic 233 | . . 233 Impact . | . . . Slashing . | . . . Piercing . | . . . Highest Corruption 2 | . 2 2 Average Corruption 2 | . 2 2 Corruption Purged . | . . . Corruption Blocked . | . . . Effects 32 | . 19 13 Message Errors 8 | . 5 3 Matter Fused 11 | . 6 5 Heat Flow Errors 3 | . 2 1 Energy Discharges 2 | . 1 1 Data Loss (minor) 3 | . 2 1 Data Loss (major) 1 | . 1 . Misfires 4 | . 2 2 Overload Shots . | . . . Overflow Damage . | . . . Projectiles . | . . . Explosions . | . . . Melee . | . . . Knockbacks . | . . . Impact . | . . . Kinetic . | . . . Secondary . | . . . Self-Inflicted Damage . | . . . Shots . | . . . Rammed 4 | . 4 . Targets Rammed 5 | . 5 . Kicked . | . . . Crushed 1 | . 1 . Highest Temperature 271 | 40 271 156 Average Temperature 49 | 25 58 32 Received Heat Transfer 261 | . 48 213 Effects 1 | . 1 . Interference 1 | . 1 . Siege Activations . | . . . Robots Corrupted . | . . . Combat Hostiles . | . . . Parts Fried 3 | . . 3 Impact Corruptions . | . . . Robots Melted . | . . . Combat Hostiles . | . . . Parts Melted 1 | . . 1 Heat Transferred 250 | 50 150 50 Parts Sabotaged . | . . . Parts Stolen . | . . . Parts Stripped . | . . . Power Chain Reactions . | . . . Alert | -11 -10 -10 ------- Run | Yrd Mat Sub Peak Influence 192 | 5 192 . Initial 3 | . 3 . Average 83 | 1 87 . Maximum Alert Level . | . . . Low Security (%) 100 | 100 100 . Level 1 . | . . . Level 2 . | . . . Level 3 . | . . . Level 4 . | . . . Level 5 . | . . . High Security . | . . . Max Security . | . . . Squads Dispatched 1 | . 1 . Investigation 1 | . 1 . Extermination . | . . . Reinforcement . | . . . Assault . | . . . Garrison . | . . . Intercept . | . . . Searches Triggered . | . . . Construction Impeded . | . . . Haulers Reinforced . | . . . Active Scanning Responses . | . . . Cargo Convoy Interrupts . | . . . Stealth | -11 -10 -10 --------- Run | Yrd Mat Sub Distress Signals 1 | . 1 . Communications Jammed . | . . . Distress Signals . | . . . Times Spotted 26 | . 19 7 Peak Tracking Total 5 | . 5 2 Tactical Retreats 1 | . 1 . Traps | -11 -10 -10 ------- Run | Yrd Mat Sub Traps Triggered 4 | . 1 3 Indirectly . | . . . Trap Hack Attempts . | . . . Triggered . | . . . Disarmed . | . . . Reprogrammed . | . . . Reused . | . . . Traps Extracted . | . . . Installed . | . . . Triggered . | . . . Machines | -11 -10 -10 ---------- Run | Yrd Mat Sub Machines Disabled . | . . . Max in Single Turn . | . . . Machines Repaired . | . . . Machines Dismantled . | . . . Machines Sabotaged . | . . . Overloaded Fab Kills . | . . . Hacking | -11 -10 -10 --------- Run | Yrd Mat Sub Machines Accessed 7 | . 7 . Terminals 7 | . 7 . Fabricators . | . . . Repair Stations . | . . . Recycling Units . | . . . Scanalyzers . | . . . Garrison Access . | . . . Total Hacks 29 | . 29 . Successful 20 | . 20 . Failed 9 | . 9 . Catastrophic . | . . . Database Lockouts . | . . . Manual 16 | . 16 . Terminals 29 | . 29 . Fabricators . | . . . Repair Stations . | . . . Recycling Units . | . . . Scanalyzers . | . . . Garrison Access . | . . . Terminal Hacks 15 | . 15 . Robot Analysis 5 | . 5 . Prototype ID Bank 3 | . 3 . Emergency Access Points 1 | . 1 . Alert Level 1 | . 1 . Locate Traps 3 | . 3 . Patrol Status 1 | . 1 . Hauler Manifests 1 | . 1 . Fabricator Hacks . | . . . Repair Station Hacks . | . . . Recycling Unit Hacks . | . . . Scanalyzer . | . . . Garrison Access Hacks . | . . . Unauthorized Hacks 5 | . 5 . Terminals 5 | . 5 . Botnet 4 | . 4 . Operators 1 | . 1 . Fabricators . | . . . Repair Stations . | . . . Recycling Units . | . . . Scanalyzers . | . . . Garrison Access . | . . . Data Cores Recovered . | . . . Used . | . . . Hacking Detections 5 | . 5 . Full Trace Events 1 | . 1 . Feedback Events . | . . . Feedback Blocked . | . . . Robot Schematics Acquired . | . . . Robots Built . | . . . Authchips . | . . . Time . | . . . Total Robot Build Rating . | . . . Part Schematics Acquired . | . . . Parts Built . | . . . Authchips . | . . . Time . | . . . Total Part Build Rating . | . . . Parts Repaired . | . . . Time . | . . . Parts Recycled . | . . . Recycled Matter . | . . . Retrieved Matter . | . . . Retrieved Components . | . . . Parts Scanalyzed . | . . . Part Schematics Acquired . | . . . Parts Damaged . | . . . Bothacking | -11 -10 -10 ------------ Run | Yrd Mat Sub Used RIF Installer . | . . . Robots Hacked . | . . . Non-combat . | . . . Combat . | . . . Robot Hacks Applied . | . . . Relay Couplers Released . | . . . Fabnet Peak Effective % . | . . . Robots Rewired . | . . . Allies Hacked . | . . . Hacks Repelled . | . . . Allies | -11 -10 -10 -------- Run | Yrd Mat Sub Total Allies . | . . . Largest Group . | . . . Highest-Rated Group . | . . . Highest-Rated Ally . | . . . Total Orders . | . . . Ally Attacks . | . . . Total Damage . | . . . Kills . | . . . Allies Corrupted . | . . . Allies Melted . | . . . Intel | -11 -10 -10 ------- Run | Yrd Mat Sub Robot Analysis Total 5 | . 5 . Derelict Logs Recovered 2 | . . 2 Drone Launches . | . . . Drone Recoveries . | . . . Exploration | -11 -10 -10 ------------- Run | Yrd Mat Sub Turns Passed 2982 | 80 1532 1370 Spaces Moved 1565 | 39 835 691 Core 5 | 5 . . Treads 1560 | 34 835 691 Legs . | . . . Wheels . | . . . Hover . | . . . Flight . | . . . Fastest Speed 50 | 50 160 160 Average Speed 159 | 145 160 160 Slowest Speed 240 | 160 160 240 Overloaded Moves . | . . . Propulsion Burnouts . | . . . Robots Hopped . | . . . Cave-ins Triggered . | . . . Exploration Rate (%) 52 | 3 99 56 Regions Visited 2 Branch Regions 1 Pre-discovered Areas 2 | . . 2 Known Exits Taken 1 | . 1 . Unknown Exits Taken 1 | 1 . . Scrap Searched . | . . . Spaces Dug 4 | . . 4 Terrain Destroyed 4 | . . 4 Melee 4 | . . 4 Projectile . | . . . AOE . | . . . Terrain Rammed . | . . . Walls Destroyed . | . . . Machines Disabled . | . . . Actions | -11 -10 -10 --------- Run | Yrd Mat Sub Total 1870 | 52 941 877 Wait 128 | . 22 106 Move 1563 | 38 834 691 Hop . | . . . Pick Up 19 | 3 10 6 Fast Attach 10 | 7 2 1 Attach 6 | . . 6 Detach 2 | . 1 1 Swap 16 | . 7 9 Drop 12 | . 7 5 Fire 86 | 4 53 29 Melee 23 | . . 23 Ram . | . . . Kick . | . . . Crush 5 | . 5 . Escape Stasis . | . . . Rewire . | . . . Trap . | . . . Miscellaneous . | . . . Route ------- -11/Scrapyard -10/Materials (discovered 6 exits: *Mat x3 / *Min x2 / *Sub) -10/Subcaves (discovered 2 exits: *Mat x2) History --------- Turn | Location | Event 25 | -11/Scrapyard | Discovered new exit (range 15) 81 | -11/Scrapyard | Entered Materials 309 | -10/Materials | Build established: Mutant 590 | -10/Materials | Discovered new exit (range 15) 630 | -10/Materials | Identified exit to Materials 721 | -10/Materials | Build established: Scavenger-Mutant 859 | -10/Materials | Discovered new exit (range 12) 971 | -10/Materials | Discovered exit to Materials (range 8) 1237 | -10/Materials | Discovered new exit (range 13) 1277 | -10/Materials | Identified exit to Mines 1385 | -10/Materials | Discovered exit to Materials (range 16) 1602 | -10/Materials | Discovered new exit (range 8) 1611 | -10/Materials | Identified exit to Subcaves 1613 | -10/Materials | Entered Subcaves 1626 | -10/Subcaves | Learned Materials stockpile data 1754 | -10/Subcaves | Learned location of Storage (-7) 1755 | -10/Subcaves | Shifting Twisted Machinery released Sub. Laser 1759 | -10/Subcaves | Shifting Twisted Machinery released Sub. Monowheel 1811 | -10/Subcaves | Learned location of Zion (-6) 1811 | -10/Subcaves | Met a Zionite searching for "candidates" 1999 | -10/Subcaves | Discovered new exit (range 8) 2011 | -10/Subcaves | Identified exit to Materials 2080 | -10/Subcaves | Discovered exit to Materials (range 10) 2323 | -10/Subcaves | Core integrity fell below 50% 2369 | -10/Subcaves | Lost 4 parts (3n1w) 2829 | -10/Subcaves | A swath of the cavern ceiling suddenly collapsed 2922 | -10/Subcaves | Shifting Twisted Machinery released Battle Rifle 2953 | -10/Subcaves | Core integrity fell below 20% 2983 | -10/Subcaves | Destroyed by SY-ST1(R) with Subdweller Laser Last Messages --------------- 02601_ System corrupted: Component data lost. 02626_ Acquired 11 matter. 02668_ Y-45 Defender destroyed. 02670_ Acquired 4 matter. 02677_ Heat Sink fries itself beyond repair. 02735_ System corrupted: Matter fused (-7). 02825_ System corrupted: Matter fused (-9). A swath of the cavern ceiling suddenly collapses. Battle Rifle falls loose from the Twisted Machinery. 02935_ Acquired Battle Rifle. 02949_ Lgt. Treads destroyed. 02959_ A3-29P(R) destroyed. 02963_ Acquired Sub. Laser. 02966_ Acquired 42 matter. 02969_ Subatomizers dissect the Sub. Optics. 02976_ Sub. Power Source shoots sparks and powers down. 02981_ Subatomizers dissect the Sub. Optics. Map ----- +----------------------------------------------------+ | | | | | ?????????????????????????????????????????????????? | | ?????????????????????????????????????????????????? | | ?????????????????????????????????????????????????? | | ?????????????????????????????????????????????????? | | ?????????????????????????????????????????????????? | | ?????????????????????????????????????????????????? | | ?????????????????????????????????????????????????? | | ?????????????????????????????????????????????????? | | ?????????????????????????????????????????????????? | | ?????????????????????????????????????????????????? | | ?????????????????????????????????????????????????? | | ?????????????????????????????????????????????????? | | ?????????????????????????????????????????????????? | | ?????????????????????????????????????????????????? | | ????????????????????????????????####???#?????????? | | ??????????????????????????????### #???# ###????## | | ????????????????????????????### ##?? " ??## | | ????????????????????????????# #???"" ### | | ????????????????????????????# # ##???? | | ????????????????????????###### ##" ##????? | | ???????????????????????##"##"#!##"""#???????# | | ???????????????????????#""""& "####????????# | | ???????????????????????# " !### "#???????????# | | ???????????????????????# @"###""## #???????###### | | ???????????????????????# ##?####""#???????# ### | | ??????????????????????# ???##"###????????# ## | | ????????????????????? # #???#"#"#??????????# | | ???????????????????# # ???## ##?######??## | | ??????????????????# # # ???#" "###"##"#### # | | ??????????????????# ?## #???####"""""""" ### | | ??????????????????##???? #???###"""####" ### | | ???????????????????????? ;;? #"#""#"###" # | | ???????????????????????? #? ##""####?##### | | ???????????????????????? R?????##"#????????##### | | ???????????????????????? ??????###???###??????# | | ???????????????????????? ????????##### ##?????### | | ????????????????????????# ??###### ##??????? | | ????????????????????????? # ???????# | | ????????????????????????? ? #?????### | | ????????????????????????????? #?##### | | ???????????????????????????????# ### | | ???????????????????????????????? | | ???????????????????????????????????# | | ???????????????????????????????????## ### | | ???????????????????????????????????## ##?# | | ??????????????????????????????????## #?## | | ?????????????????????????????????## ### | | ???????????????????????????????### ## | +----------------------------------------------------+ Best States ------------- Heat Dissipation 25 Energy Generation 15 Energy Capacity 200 Matter Stores 300 Matter Capacity 300 Sight Range 16 Terrain Scan Density 10 Evasion (%) 40 Recoil Reduction 2 Item Schematics ----------------- None Robot Schematics ------------------ None Fabricated ------------ Nothing Alien Tech Used ----------------- None Achievements -------------- None Challenges ------------ None Game ------ Seed GaussReactivePropulsion Manual? 0 Play Time 00:19:04 Cumulative 43.9 hours Start 2024.04.24 @ 11:13:57 End 2024.04.24 @ 11:32:54 Sessions 1 Manual Loads 0 Difficulty Rogue Special Mode None Game No. 39 Rogue 39 Adventurer 0 Explorer 0 Win Type - Total 2 Types 2/0/0/0/0/0/0/0/0 Lore% 34 Gallery% 35 Achievement% 39 Wizard Run 0 Options --------- Layout 1 ASCII 0 Keyboard 0 Movement Arrows Keybinds 0 Fullscreen 1 Font 24/Smallcaps Map View 50x35 Zoom Use 0% Tactical HUD 1 Map Filters NONE Filters NONE Steam 1 RUN: d3c367bc-d8a2-4615-9680-4196e1e990f4